[Event "Live Chess"]
[Site "Chess.com"]
[Date "2023.05.20"]
[Round "-"]
[White "raimundklein"]
[Black "AbilifyXL"]
[Result "0-1"]
[WhiteElo "1498"]
[BlackElo "1972"]
[TimeControl "300"]
[EndTime "15:02:13 PDT"]
[Termination "AbilifyXL won by resignation"]

1. e4 {[%clk 0:04:56.6]} 1... d5 {[%clk 0:04:59.9]} 2. exd5 {[%clk 0:04:54.8]}
2... Qxd5 {[%clk 0:04:59.8]} 3. Nc3 {[%clk 0:04:53.3]} 3... Qa5 {[%clk
0:04:56.9]} 4. d4 {[%clk 0:04:51.6]} 4... c6 {[%clk 0:04:56]} 5. Bc4 {[%clk
0:04:47.5]} 5... Nf6 {[%clk 0:04:55.1]} 6. Ne2 {[%clk 0:04:40.2]} 6... Bf5
{[%clk 0:04:54]} 7. Bd2 {[%clk 0:04:22.8]} 7... Nbd7 {[%clk 0:04:51.4]} 8. Ng3
{[%clk 0:04:15.4]} 8... Bg6 {[%clk 0:04:49]} 9. O-O {[%clk 0:03:56.1]} 9... e6
{[%clk 0:04:47.2]} 10. f4 {[%clk 0:03:37.3]} 10... Qb6 {[%clk 0:04:43.8]} 11.
Be3 {[%clk 0:03:24.1]} 11... Qxb2 {[%clk 0:04:41.3]} 12. f5 {[%clk 0:03:20.6]}
12... Qxc3 {[%clk 0:04:32.5]} 13. fxg6 {[%clk 0:03:17.7]} 13... Qxc4 {[%clk
0:04:22.3]} 14. gxf7+ {[%clk 0:03:16]} 14... Kxf7 {[%clk 0:04:20.9]} 15. Qh5+
{[%clk 0:03:13.9]} 15... Ke7 {[%clk 0:04:15.9]} 16. Qh4 {[%clk 0:02:55.8]} 16...
Kd8 {[%clk 0:04:06.5]} 17. Rf2 {[%clk 0:02:39.2]} 17... Bd6 {[%clk 0:03:57.6]}
18. Ne4 {[%clk 0:02:35.9]} 18... Be7 {[%clk 0:03:46.6]} 19. Ng5 {[%clk
0:02:31.2]} 19... Qc3 {[%clk 0:03:28.4]} 20. Nf7+ {[%clk 0:02:23.2]} 20... Kc8
{[%clk 0:03:27.3]} 21. Nxh8 {[%clk 0:02:20.5]} 21... Qxa1+ {[%clk 0:03:24.9]}
22. Rf1 {[%clk 0:02:18]} 22... Qc3 {[%clk 0:03:22.2]} 23. Bf2 {[%clk 0:02:12.5]}
23... Qxc2 {[%clk 0:03:09.3]} 24. Nf7 {[%clk 0:02:00.6]} 24... Qe4 {[%clk
0:03:02.8]} 25. Qh3 {[%clk 0:01:58.6]} 25... Qf5 {[%clk 0:02:54.1]} 26. Qb3
{[%clk 0:01:54.6]} 26... Qd5 {[%clk 0:02:45.2]} 27. Qh3 {[%clk 0:01:50.3]} 27...
h6 {[%clk 0:02:43.3]} 28. Bh4 {[%clk 0:01:44.7]} 28... Qxd4+ {[%clk 0:02:40.6]}
29. Bf2 {[%clk 0:01:39.3]} 29... Qd5 {[%clk 0:02:38]} 30. Nh8 {[%clk 0:01:35.1]}
30... Bc5 {[%clk 0:02:35.9]} 31. Ng6 {[%clk 0:01:32.4]} 31... Bxf2+ {[%clk
0:02:34.4]} 32. Rxf2 {[%clk 0:01:31.3]} 32... Kc7 {[%clk 0:02:31]} 33. Ne7
{[%clk 0:01:26.1]} 33... Qd1+ {[%clk 0:02:24]} 34. Rf1 {[%clk 0:01:25.4]} 34...
Qd4+ {[%clk 0:02:21.8]} 35. Kh1 {[%clk 0:01:22.4]} 35... Qc4 {[%clk 0:02:11.7]}
36. Re1 {[%clk 0:01:18.4]} 36... Re8 {[%clk 0:02:09.7]} 37. Ng6 {[%clk
0:01:09.6]} 37... e5 {[%clk 0:02:05.9]} 38. Nh4 {[%clk 0:01:04.4]} 38... Kb8
{[%clk 0:02:03.8]} 39. Nf5 {[%clk 0:01:03]} 39... Qf7 {[%clk 0:02:00.3]} 40. Nd6
{[%clk 0:01:00.5]} 40... Qe6 {[%clk 0:01:59.2]} 41. Nxe8 {[%clk 0:00:57.2]}
41... Qxh3 {[%clk 0:01:58]} 42. gxh3 {[%clk 0:00:55]} 42... Nxe8 {[%clk
0:01:57.1]} 43. Kg2 {[%clk 0:00:54.5]} 43... Nef6 {[%clk 0:01:56]} 44. Kf3
{[%clk 0:00:53.8]} 44... Kc7 {[%clk 0:01:55.9]} 45. Rg1 {[%clk 0:00:50.6]} 45...
g5 {[%clk 0:01:49.9]} 46. h4 {[%clk 0:00:48.8]} 46... g4+ {[%clk 0:01:48.4]} 47.
Ke3 {[%clk 0:00:47.6]} 47... Kd6 {[%clk 0:01:46.3]} 48. Rb1 {[%clk 0:00:42.7]}
48... b6 {[%clk 0:01:44.8]} 49. Rd1+ {[%clk 0:00:40.8]} 49... Ke6 {[%clk
0:01:43.9]} 50. Rc1 {[%clk 0:00:37.7]} 50... c5 {[%clk 0:01:42.6]} 51. Rc4
{[%clk 0:00:34.9]} 51... Nd5+ {[%clk 0:01:38.7]} 52. Kf2 {[%clk 0:00:30.9]}
52... N7f6 {[%clk 0:01:37.7]} 53. Ra4 {[%clk 0:00:28.7]} 53... a5 {[%clk
0:01:36.2]} 54. Ra3 {[%clk 0:00:27.5]} 54... h5 {[%clk 0:01:34.9]} 55. Rd3
{[%clk 0:00:23.3]} 55... e4 {[%clk 0:01:33.4]} 56. Rd1 {[%clk 0:00:20.9]} 56...
e3+ {[%clk 0:01:32.4]} 57. Ke2 {[%clk 0:00:19.3]} 57... Nc3+ {[%clk 0:01:30.8]}
58. Kxe3 {[%clk 0:00:17.5]} 58... Nxd1+ {[%clk 0:01:30.7]} 59. Kf4 {[%clk
0:00:16.6]} 59... Nc3 {[%clk 0:01:29.1]} 0-1

[Event "Live Chess"]
[Site "Chess.com"]
[Date "2023.05.20"]
[Round "-"]
[White "SupremeTactician"]
[Black "parcellforce"]
[Result "1-0"]
[WhiteElo "2367"]
[BlackElo "1385"]
[TimeControl "300"]
[EndTime "15:02:16 PDT"]
[Termination "SupremeTactician won by resignation"]

1. e4 {[%clk 0:04:58.8]} 1... e5 {[%clk 0:04:58.1]} 2. Nf3 {[%clk 0:04:53.6]}
2... Nc6 {[%clk 0:04:56.6]} 3. Nc3 {[%clk 0:04:53.3]} 3... Nf6 {[%clk
0:04:51.8]} 4. Bb5 {[%clk 0:04:52.9]} 4... a6 {[%clk 0:04:50.4]} 5. Bxc6 {[%clk
0:04:49.9]} 5... dxc6 {[%clk 0:04:37.8]} 6. Nxe5 {[%clk 0:04:49.1]} 6... Nxe4
{[%clk 0:04:29]} 7. Nxe4 {[%clk 0:04:49]} 7... Qd4 {[%clk 0:04:28.6]} 8. O-O
{[%clk 0:04:48]} 8... Qxe5 {[%clk 0:04:21.2]} 9. d4 {[%clk 0:04:47]} 9... Qd5
{[%clk 0:04:08.1]} 10. b3 {[%clk 0:04:32.5]} 10... Be6 {[%clk 0:04:05.8]} 11.
Re1 {[%clk 0:04:28.9]} 11... Qd7 {[%clk 0:03:59.1]} 12. Ng5 {[%clk 0:04:23.1]}
12... Be7 {[%clk 0:03:43.7]} 13. Nxe6 {[%clk 0:04:20.1]} 13... fxe6 {[%clk
0:03:43.6]} 14. Qh5+ {[%clk 0:04:19.3]} 14... g6 {[%clk 0:03:37.3]} 15. Qe5
{[%clk 0:04:18.8]} 15... O-O-O {[%clk 0:03:28.8]} 16. Qxe6 {[%clk 0:04:15.9]}
16... Qxe6 {[%clk 0:03:26.9]} 17. Rxe6 {[%clk 0:04:15.8]} 17... Rhe8 {[%clk
0:03:24.5]} 18. Bb2 {[%clk 0:04:11.3]} 18... Bf8 {[%clk 0:03:17.2]} 19. Rae1
{[%clk 0:04:08.9]} 19... Rxe6 {[%clk 0:03:12.1]} 20. Rxe6 {[%clk 0:04:08.8]}
20... Bg7 {[%clk 0:03:11.5]} 21. c3 {[%clk 0:04:03.6]} 21... c5 {[%clk
0:03:08.8]} 22. Re7 {[%clk 0:03:56.6]} 22... cxd4 {[%clk 0:02:51.6]} 23. cxd4
{[%clk 0:03:55.6]} 23... Bxd4 {[%clk 0:02:45.2]} 24. Bxd4 {[%clk 0:03:54.7]}
24... Rxd4 {[%clk 0:02:44.1]} 25. g3 {[%clk 0:03:54.4]} 25... Rd7 {[%clk
0:02:41.8]} 26. Re8+ {[%clk 0:03:38.8]} 26... Rd8 {[%clk 0:02:39.7]} 27. Re2
{[%clk 0:03:38.5]} 27... b6 {[%clk 0:02:33.7]} 28. f4 {[%clk 0:03:29.6]} 28...
Rd7 {[%clk 0:02:22.9]} 29. Kf2 {[%clk 0:03:28.4]} 29... Kd8 {[%clk 0:02:20.8]}
30. Kf3 {[%clk 0:03:25.8]} 30... Re7 {[%clk 0:02:19.1]} 31. Rd2+ {[%clk
0:03:24.9]} 31... Rd7 {[%clk 0:02:18.4]} 32. Rc2 {[%clk 0:03:22.3]} 32... c5
{[%clk 0:02:12.2]} 33. g4 {[%clk 0:03:18.7]} 33... Kc7 {[%clk 0:02:06.1]} 34. f5
{[%clk 0:03:17.2]} 34... Rf7 {[%clk 0:02:05.8]} 35. Kf4 {[%clk 0:03:16]} 35...
h5 {[%clk 0:02:01]} 36. h3 {[%clk 0:03:12.9]} 36... hxg4 {[%clk 0:01:58.7]} 37.
hxg4 {[%clk 0:03:12.8]} 37... gxf5 {[%clk 0:01:57.4]} 38. gxf5 {[%clk
0:03:12.7]} 38... Kc6 {[%clk 0:01:54.3]} 39. Ke5 {[%clk 0:03:10.9]} 39... Kd7
{[%clk 0:01:42.4]} 40. Rd2+ {[%clk 0:03:08.5]} 40... Kc7 {[%clk 0:01:22.3]} 41.
Ke6 {[%clk 0:03:06.1]} 41... Rf8 {[%clk 0:01:10.1]} 42. f6 {[%clk 0:03:00.6]}
42... Kc6 {[%clk 0:00:35.4]} 43. Ke7 {[%clk 0:02:57.9]} 43... Ra8 {[%clk
0:00:34.3]} 44. Rd6+ {[%clk 0:02:55.2]} 44... Kb5 {[%clk 0:00:33.6]} 45. f7
{[%clk 0:02:54]} 45... a5 {[%clk 0:00:31]} 46. f8=Q {[%clk 0:02:50]} 46... Rxf8
{[%clk 0:00:30.5]} 47. Kxf8 {[%clk 0:02:49.9]} 47... Ka6 {[%clk 0:00:23.8]} 48.
Ke7 {[%clk 0:02:48.3]} 48... Kb5 {[%clk 0:00:19.4]} 49. Kd7 {[%clk 0:02:47.6]}
1-0

[Event "Live Chess"]
[Site "Chess.com"]
[Date "2023.05.20"]
[Round "-"]
[White "Ferrarifan27"]
[Black "JohanKjeldahl"]
[Result "1-0"]
[WhiteElo "2062"]
[BlackElo "1865"]
[TimeControl "300"]
[EndTime "15:02:19 PDT"]
[Termination "Ferrarifan27 won by resignation"]

1. e4 {[%clk 0:04:58.1]} 1... c5 {[%clk 0:04:58.1]} 2. Nf3 {[%clk 0:04:54.5]}
2... e6 {[%clk 0:04:56.9]} 3. d4 {[%clk 0:04:52.8]} 3... cxd4 {[%clk 0:04:55.8]}
4. Nxd4 {[%clk 0:04:52.7]} 4... Nc6 {[%clk 0:04:54.8]} 5. Be3 {[%clk 0:04:49.5]}
5... a6 {[%clk 0:04:53.5]} 6. Bd3 {[%clk 0:04:48]} 6... Qc7 {[%clk 0:04:52.5]}
7. O-O {[%clk 0:04:46.1]} 7... b5 {[%clk 0:04:51.4]} 8. a3 {[%clk 0:04:44.3]}
8... Nf6 {[%clk 0:04:50.3]} 9. f3 {[%clk 0:04:42.8]} 9... Bb7 {[%clk 0:04:49.2]}
10. Qe2 {[%clk 0:04:39.5]} 10... Be7 {[%clk 0:04:47.9]} 11. Kh1 {[%clk
0:04:37.7]} 11... O-O {[%clk 0:04:46.5]} 12. Nc3 {[%clk 0:04:36.2]} 12... Rad8
{[%clk 0:04:43.8]} 13. Rad1 {[%clk 0:04:32.6]} 13... d5 {[%clk 0:04:42.2]} 14.
exd5 {[%clk 0:04:31.5]} 14... Nxd5 {[%clk 0:04:40.3]} 15. Nxd5 {[%clk
0:04:30.5]} 15... Rxd5 {[%clk 0:04:39.4]} 16. Be4 {[%clk 0:04:28.9]} 16... Rh5
{[%clk 0:04:37.1]} 17. f4 {[%clk 0:04:22.6]} 17... Nxd4 {[%clk 0:04:34.6]} 18.
Qxh5 {[%clk 0:04:10.1]} 18... Bxe4 {[%clk 0:04:31.8]} 19. Bxd4 {[%clk
0:04:03.7]} 19... Qxc2 {[%clk 0:04:29.8]} 20. Qg4 {[%clk 0:03:57.6]} 20... g6
{[%clk 0:04:17.9]} 21. Rf2 {[%clk 0:03:50]} 21... Qc6 {[%clk 0:04:08.5]} 22. Qh3
{[%clk 0:03:46]} 22... h5 {[%clk 0:04:02.4]} 23. Bc3 {[%clk 0:03:36.2]} 23...
Bc5 {[%clk 0:03:47.4]} 24. Re2 {[%clk 0:03:32.1]} 24... Bf5 {[%clk 0:03:43.9]}
25. Qh4 {[%clk 0:03:29.7]} 25... f6 {[%clk 0:03:06.5]} 26. Bxf6 {[%clk
0:03:27.7]} 26... Bg4 {[%clk 0:03:02.7]} 27. Qg5 {[%clk 0:03:12.8]} 27... Kh7
{[%clk 0:02:53.5]} 28. Red2 {[%clk 0:02:32.2]} 28... Bxd1 {[%clk 0:02:48.8]} 29.
Rxd1 {[%clk 0:02:32.1]} 29... Rf7 {[%clk 0:02:34.4]} 30. Rd8 {[%clk 0:02:10.3]}
30... Bf8 {[%clk 0:02:32.1]} 31. h4 {[%clk 0:02:01.1]} 31... Qc1+ {[%clk
0:02:23.1]} 32. Kh2 {[%clk 0:02:00]} 32... Qc7 {[%clk 0:02:10.2]} 33. Be5 {[%clk
0:01:49.7]} 33... Qe7 {[%clk 0:01:57.2]} 34. Ra8 {[%clk 0:01:37.4]} 34... Qb7
{[%clk 0:01:28.6]} 35. Qd8 {[%clk 0:01:33.2]} 35... Qc6 {[%clk 0:01:07]} 36. Bc3
{[%clk 0:01:18.4]} 36... Rxf4 {[%clk 0:00:56.1]} 37. Ra7+ {[%clk 0:01:10.3]}
37... Kg8 {[%clk 0:00:48.1]} 38. Rg7+ {[%clk 0:01:06]} 38... Kh8 {[%clk
0:00:35.7]} 39. Rc7+ {[%clk 0:00:54.9]} 1-0

[Event "Live Chess"]
[Site "Chess.com"]
[Date "2023.05.20"]
[Round "-"]
[White "CeladonFish"]
[Black "EdenHazard8"]
[Result "0-1"]
[WhiteElo "1165"]
[BlackElo "2044"]
[TimeControl "300"]
[EndTime "15:02:24 PDT"]
[Termination "EdenHazard8 won by resignation"]

1. d4 {[%clk 0:04:59.4]} 1... Nf6 {[%clk 0:04:58.1]} 2. c4 {[%clk 0:04:58.4]}
2... d5 {[%clk 0:04:57.6]} 3. Nc3 {[%clk 0:04:57.5]} 3... e6 {[%clk 0:04:56.8]}
4. Bf4 {[%clk 0:04:56.6]} 4... dxc4 {[%clk 0:04:55.9]} 5. Nf3 {[%clk 0:04:55.5]}
5... c6 {[%clk 0:04:54.1]} 6. e3 {[%clk 0:04:55]} 6... b5 {[%clk 0:04:52.5]} 7.
a4 {[%clk 0:04:53.3]} 7... Bb4 {[%clk 0:04:48.4]} 8. Qc2 {[%clk 0:04:46.4]} 8...
O-O {[%clk 0:04:45.1]} 9. b3 {[%clk 0:04:43.1]} 9... Nd5 {[%clk 0:04:42.5]} 10.
Kd2 {[%clk 0:04:25.5]} 10... Bxc3+ {[%clk 0:04:40.6]} 11. Kc1 {[%clk 0:04:22.7]}
11... Bxa1 {[%clk 0:04:39.2]} 12. Kd2 {[%clk 0:04:21.9]} 12... Bc3+ {[%clk
0:04:37.3]} 0-1

[Event "Live Chess"]
[Site "Chess.com"]
[Date "2023.05.20"]
[Round "-"]
[White "chessfiction"]
[Black "elvenstar"]
[Result "1-0"]
[WhiteElo "2346"]
[BlackElo "1569"]
[TimeControl "300"]
[EndTime "15:02:30 PDT"]
[Termination "chessfiction won by resignation"]

1. e4 {[%clk 0:04:59.6]} 1... d5 {[%clk 0:04:58.8]} 2. d4 {[%clk 0:04:58.8]}
2... e6 {[%clk 0:04:53.8]} 3. Nc3 {[%clk 0:04:57.5]} 3... c6 {[%clk 0:04:51.6]}
4. Nf3 {[%clk 0:04:56.2]} 4... Bb4 {[%clk 0:04:49.4]} 5. Bd3 {[%clk 0:04:54.1]}
5... Ne7 {[%clk 0:04:45.1]} 6. O-O {[%clk 0:04:51.3]} 6... O-O {[%clk
0:04:38.5]} 7. e5 {[%clk 0:04:49.8]} 7... Ng6 {[%clk 0:04:36.3]} 8. Ng5 {[%clk
0:04:46.2]} 8... Nd7 {[%clk 0:04:31.5]} 9. Qh5 {[%clk 0:04:44.4]} 9... h6 {[%clk
0:04:28.3]} 10. Nxe6 {[%clk 0:04:41.8]} 10... Qe7 {[%clk 0:04:14.1]} 11. Nxf8
{[%clk 0:04:36.6]} 11... Ndxf8 {[%clk 0:04:12.5]} 12. Bd2 {[%clk 0:04:33.3]}
12... Be6 {[%clk 0:03:30.2]} 13. f4 {[%clk 0:04:32]} 13... Qh4 {[%clk
0:03:20.5]} 14. Qxh4 {[%clk 0:04:24.5]} 14... Nxh4 {[%clk 0:03:18.7]} 15. f5
{[%clk 0:04:22.8]} 15... Bd7 {[%clk 0:03:12.6]} 16. g3 {[%clk 0:04:21.6]} 16...
Bxc3 {[%clk 0:02:53.5]} 17. bxc3 {[%clk 0:04:10.3]} 1-0

[Event "Live Chess"]
[Site "Chess.com"]
[Date "2023.05.20"]
[Round "-"]
[White "colourmefree"]
[Black "Doge_Dandolo"]
[Result "0-1"]
[WhiteElo "397"]
[BlackElo "2031"]
[TimeControl "300"]
[EndTime "15:02:32 PDT"]
[Termination "Doge_Dandolo won by resignation"]

1. d4 {[%clk 0:04:57.6]} 1... d5 {[%clk 0:04:57.8]} 2. c4 {[%clk 0:04:56.2]}
2... c6 {[%clk 0:04:55.7]} 3. Nf3 {[%clk 0:04:54.3]} 3... Nf6 {[%clk 0:04:54.3]}
4. e3 {[%clk 0:04:53.5]} 4... a6 {[%clk 0:04:53.2]} 5. Nc3 {[%clk 0:04:52.8]}
5... Bf5 {[%clk 0:04:51.6]} 6. g3 {[%clk 0:04:47.6]} 6... e6 {[%clk 0:04:50.1]}
7. Bg2 {[%clk 0:04:46.5]} 7... Be7 {[%clk 0:04:46.6]} 8. O-O {[%clk 0:04:38.8]}
8... O-O {[%clk 0:04:42.7]} 9. Ne5 {[%clk 0:04:32.2]} 9... Nbd7 {[%clk
0:04:39.7]} 10. Nxd7 {[%clk 0:04:27.7]} 10... Qxd7 {[%clk 0:04:35.5]} 11. f3
{[%clk 0:04:26.2]} 11... dxc4 {[%clk 0:04:31.8]} 12. e4 {[%clk 0:04:24.7]} 12...
Bg6 {[%clk 0:04:30.1]} 13. Bg5 {[%clk 0:04:15.9]} 13... Rfd8 {[%clk 0:04:25.8]}
14. Qd2 {[%clk 0:04:09.5]} 14... Qxd4+ {[%clk 0:04:18.2]} 15. Qf2 {[%clk
0:03:44.4]} 15... b5 {[%clk 0:04:02.5]} 16. Rad1 {[%clk 0:03:38.7]} 16... Qxf2+
{[%clk 0:04:00.2]} 17. Rxf2 {[%clk 0:03:36.9]} 17... Rxd1+ {[%clk 0:03:58.2]}
18. Rf1 {[%clk 0:03:35.5]} 18... Rxf1+ {[%clk 0:03:56.4]} 19. Bxf1 {[%clk
0:03:34.4]} 19... Bc5+ {[%clk 0:03:52]} 20. Kh1 {[%clk 0:03:26.2]} 20... Rd8
{[%clk 0:03:46.9]} 21. Bh3 {[%clk 0:02:57.5]} 21... Rd2 {[%clk 0:03:41.4]} 22.
Bxd2 {[%clk 0:02:52.5]} 22... Nd7 {[%clk 0:03:37.2]} 23. b3 {[%clk 0:02:33.3]}
23... cxb3 {[%clk 0:03:32.6]} 24. axb3 {[%clk 0:02:31.9]} 24... Ne5 {[%clk
0:03:29.4]} 25. Kg2 {[%clk 0:02:06.9]} 25... Nd3 {[%clk 0:03:13.4]} 26. f4
{[%clk 0:01:42.6]} 26... h5 {[%clk 0:03:01.1]} 27. Kf3 {[%clk 0:01:14.8]} 27...
Bb6 {[%clk 0:02:51.2]} 28. Ke2 {[%clk 0:01:05]} 28... Nc5 {[%clk 0:02:49]} 29.
Nxb5 {[%clk 0:01:01.7]} 29... cxb5 {[%clk 0:02:46.9]} 30. b4 {[%clk 0:00:58]}
30... Nxe4 {[%clk 0:02:45.3]} 31. Kd3 {[%clk 0:00:52.1]} 31... Nxg3+ {[%clk
0:02:40.7]} 32. Kc3 {[%clk 0:00:46.7]} 32... Ne4+ {[%clk 0:02:37.7]} 33. Kc2
{[%clk 0:00:42.7]} 33... Nf2+ {[%clk 0:02:36.4]} 34. Kc1 {[%clk 0:00:40.7]}
34... Nxh3 {[%clk 0:02:32.9]} 0-1

[Event "Live Chess"]
[Site "Chess.com"]
[Date "2023.05.20"]
[Round "-"]
[White "laminaaprod"]
[Black "wot-not"]
[Result "1-0"]
[WhiteElo "2264"]
[BlackElo "1520"]
[TimeControl "300"]
[EndTime "15:02:37 PDT"]
[Termination "laminaaprod won by resignation"]

1. b3 {[%clk 0:04:56]} 1... Nf6 {[%clk 0:04:58.7]} 2. Nf3 {[%clk 0:04:55.4]}
2... d6 {[%clk 0:04:58.2]} 3. g3 {[%clk 0:04:54.9]} 3... e5 {[%clk 0:04:57.7]}
4. Bg2 {[%clk 0:04:54.6]} 4... Be7 {[%clk 0:04:44]} 5. c4 {[%clk 0:04:52.3]}
5... Nbd7 {[%clk 0:04:42.2]} 6. O-O {[%clk 0:04:50.1]} 6... Nf8 {[%clk
0:04:38.7]} 7. Bb2 {[%clk 0:04:46.2]} 7... Ng6 {[%clk 0:04:37.1]} 8. Nc3 {[%clk
0:04:40.5]} 8... Bg4 {[%clk 0:04:33.7]} 9. d4 {[%clk 0:04:38.6]} 9... exd4
{[%clk 0:04:22.1]} 10. Qxd4 {[%clk 0:04:31.7]} 10... Qd7 {[%clk 0:04:06.7]} 11.
Rad1 {[%clk 0:04:14]} 11... O-O {[%clk 0:03:58.4]} 12. Nd5 {[%clk 0:04:07.3]}
12... Bh3 {[%clk 0:03:35.6]} 13. Nxe7+ {[%clk 0:04:02.3]} 13... Nxe7 {[%clk
0:03:33]} 14. Qd2 {[%clk 0:02:57.2]} 14... Bxg2 {[%clk 0:03:29.6]} 15. Kxg2
{[%clk 0:02:56.2]} 15... Ng6 {[%clk 0:03:19.2]} 16. Bxf6 {[%clk 0:02:49.9]}
16... gxf6 {[%clk 0:03:17.7]} 17. c5 {[%clk 0:02:43]} 17... Rad8 {[%clk
0:03:07.4]} 18. cxd6 {[%clk 0:02:41.1]} 18... cxd6 {[%clk 0:03:06.7]} 19. Qd4
{[%clk 0:02:37.9]} 19... f5 {[%clk 0:02:56.2]} 20. Qxa7 {[%clk 0:02:29.3]} 20...
f4 {[%clk 0:02:55.1]} 21. Qd4 {[%clk 0:02:27]} 21... Qc6 {[%clk 0:02:44.7]} 22.
Rc1 {[%clk 0:02:14.5]} 22... Qa6 {[%clk 0:02:35.4]} 23. Qd2 {[%clk 0:02:02.5]}
23... Rfe8 {[%clk 0:02:18.7]} 24. Rfe1 {[%clk 0:01:48.7]} 24... Ne5 {[%clk
0:01:59]} 25. a4 {[%clk 0:01:34.2]} 25... Qb6 {[%clk 0:01:29.1]} 26. Qxf4 {[%clk
0:01:22.2]} 26... Qxb3 {[%clk 0:01:19.9]} 27. Qg5+ {[%clk 0:01:16.1]} 27... Ng6
{[%clk 0:01:15.7]} 28. h4 {[%clk 0:01:15.3]} 28... Kh8 {[%clk 0:00:59.8]} 29. h5
{[%clk 0:01:09.3]} 29... Ne5 {[%clk 0:00:58]} 30. Qf6+ {[%clk 0:01:08.6]} 30...
Kg8 {[%clk 0:00:56.1]} 31. h6 {[%clk 0:01:08.5]} 31... Kf8 {[%clk 0:00:49.5]}
32. Nxe5 {[%clk 0:01:01.2]} 32... dxe5 {[%clk 0:00:43.3]} 33. Qh8+ {[%clk
0:01:00.1]} 33... Ke7 {[%clk 0:00:42.7]} 34. Qxe5+ {[%clk 0:00:59.6]} 34... Qe6
{[%clk 0:00:40.2]} 35. Rc7+ {[%clk 0:00:57.1]} 35... Rd7 {[%clk 0:00:38.3]} 36.
Rxd7+ {[%clk 0:00:47.8]} 36... Kxd7 {[%clk 0:00:37.3]} 37. Rd1+ {[%clk
0:00:47.2]} 37... Ke7 {[%clk 0:00:36.6]} 38. Qg5+ {[%clk 0:00:43.1]} 38... Kf8
{[%clk 0:00:34.9]} 39. Qg7+ {[%clk 0:00:36.5]} 39... Ke7 {[%clk 0:00:34]} 40.
Qxh7 {[%clk 0:00:30.8]} 40... Rc8 {[%clk 0:00:25.8]} 41. Qd3 {[%clk 0:00:27.1]}
41... Rc6 {[%clk 0:00:22.8]} 42. h7 {[%clk 0:00:25.6]} 42... Qh6 {[%clk
0:00:20.1]} 43. Qd8+ {[%clk 0:00:22.9]} 43... Ke6 {[%clk 0:00:17.2]} 44. h8=Q
{[%clk 0:00:21.8]} 44... Qxh8 {[%clk 0:00:16.1]} 45. Qxh8 {[%clk 0:00:21.7]}
45... f6 {[%clk 0:00:13.6]} 46. Qe8+ {[%clk 0:00:20.3]} 46... Kf5 {[%clk
0:00:12.7]} 47. Qxc6 {[%clk 0:00:19.9]} 47... bxc6 {[%clk 0:00:11.8]} 48. Rd6
{[%clk 0:00:19.5]} 48... Kg6 {[%clk 0:00:11.5]} 49. Rxc6 {[%clk 0:00:19.4]}
49... Kg5 {[%clk 0:00:10.9]} 50. Rxf6 {[%clk 0:00:18.5]} 50... Kxf6 {[%clk
0:00:09.8]} 51. a5 {[%clk 0:00:18.4]} 51... Ke6 {[%clk 0:00:09.5]} 52. a6 {[%clk
0:00:18.3]} 52... Kd6 {[%clk 0:00:09.2]} 53. a7 {[%clk 0:00:18.2]} 53... Kc7
{[%clk 0:00:08.9]} 54. g4 {[%clk 0:00:18.1]} 54... Kb7 {[%clk 0:00:08.2]} 55. g5
{[%clk 0:00:18]} 55... Kxa7 {[%clk 0:00:08]} 56. g6 {[%clk 0:00:17.9]} 56... Kb7
{[%clk 0:00:07.6]} 57. g7 {[%clk 0:00:17.8]} 57... Kb6 {[%clk 0:00:07.4]} 58.
g8=Q {[%clk 0:00:17.7]} 58... Kc5 {[%clk 0:00:07.2]} 59. Qg3 {[%clk 0:00:17.6]}
59... Kb5 {[%clk 0:00:06.8]} 60. Qd3+ {[%clk 0:00:17.5]} 60... Kc5 {[%clk
0:00:06.5]} 61. f4 {[%clk 0:00:17.4]} 61... Kc6 {[%clk 0:00:06.2]} 62. f5 {[%clk
0:00:17.3]} 62... Kc5 {[%clk 0:00:05.9]} 63. f6 {[%clk 0:00:17.2]} 63... Kc6
{[%clk 0:00:05.6]} 64. f7 {[%clk 0:00:17.1]} 64... Kc5 {[%clk 0:00:05.2]} 65.
f8=Q+ {[%clk 0:00:17]} 65... Kc6 {[%clk 0:00:04.9]} 66. Qf4 {[%clk 0:00:16.9]}
1-0

[Event "Live Chess"]
[Site "Chess.com"]
[Date "2023.05.20"]
[Round "-"]
[White "NomisY"]
[Black "Inglaterra"]
[Result "0-1"]
[WhiteElo "1519"]
[BlackElo "2050"]
[TimeControl "300"]
[EndTime "15:02:38 PDT"]
[Termination "Inglaterra won on time"]

1. d4 {[%clk 0:04:56.6]} 1... d5 {[%clk 0:04:58]} 2. c4 {[%clk 0:04:55.5]} 2...
dxc4 {[%clk 0:04:55.1]} 3. Nf3 {[%clk 0:04:54.4]} 3... Nf6 {[%clk 0:04:54.1]} 4.
e3 {[%clk 0:04:53.4]} 4... e6 {[%clk 0:04:49.5]} 5. Bxc4 {[%clk 0:04:52.3]} 5...
a6 {[%clk 0:04:48.6]} 6. a4 {[%clk 0:04:45.4]} 6... c5 {[%clk 0:04:47.7]} 7. O-O
{[%clk 0:04:42.6]} 7... Nbd7 {[%clk 0:04:39.4]} 8. Nc3 {[%clk 0:04:08.8]} 8...
Be7 {[%clk 0:04:35.9]} 9. dxc5 {[%clk 0:03:36.6]} 9... Nxc5 {[%clk 0:04:30.8]}
10. Qxd8+ {[%clk 0:03:33.8]} 10... Bxd8 {[%clk 0:04:29.3]} 11. b4 {[%clk
0:03:31.9]} 11... Nce4 {[%clk 0:04:25.5]} 12. Nxe4 {[%clk 0:03:15.7]} 12... Nxe4
{[%clk 0:04:25.4]} 13. Bd3 {[%clk 0:03:14.7]} 13... Bf6 {[%clk 0:04:16.7]} 14.
Ra3 {[%clk 0:02:56.8]} 14... Nc3 {[%clk 0:04:10.5]} 15. Nd4 {[%clk 0:02:43.6]}
15... Bxd4 {[%clk 0:03:59]} 16. exd4 {[%clk 0:02:42.7]} 16... Nd5 {[%clk
0:03:58.5]} 17. b5 {[%clk 0:02:30.5]} 17... Bd7 {[%clk 0:03:48.9]} 18. bxa6
{[%clk 0:01:48.6]} 18... bxa6 {[%clk 0:03:48.8]} 19. Be3 {[%clk 0:01:47.9]}
19... Ke7 {[%clk 0:03:43.6]} 20. a5 {[%clk 0:01:25.8]} 20... Rhc8 {[%clk
0:03:38.4]} 21. Rc1 {[%clk 0:01:15.5]} 21... Rxc1+ {[%clk 0:03:22.9]} 22. Bxc1
{[%clk 0:01:14.1]} 22... Bb5 {[%clk 0:03:18.7]} 23. Kf1 {[%clk 0:00:46.3]} 23...
Bxd3+ {[%clk 0:02:55.8]} 24. Rxd3 {[%clk 0:00:44.8]} 24... Rb8 {[%clk
0:02:53.6]} 25. Ke2 {[%clk 0:00:16.7]} 25... Rb1 {[%clk 0:02:49.5]} 26. Bd2
{[%clk 0:00:15.8]} 26... Rb2 {[%clk 0:02:43.6]} 27. Kf3 {[%clk 0:00:14.8]} 27...
Ra2 {[%clk 0:02:33.7]} 28. Be1 {[%clk 0:00:10.1]} 28... Kd7 {[%clk 0:02:26.1]}
29. Rb3 {[%clk 0:00:09]} 29... Nc7 {[%clk 0:02:21.1]} 30. Rb7 {[%clk 0:00:07.6]}
30... Ra3+ {[%clk 0:02:11.8]} 31. Ke4 {[%clk 0:00:06.4]} 31... f6 {[%clk
0:02:05.9]} 32. g3 {[%clk 0:00:04]} 32... Ra1 {[%clk 0:02:00.6]} 33. Bd2 {[%clk
0:00:03]} 33... Kc8 {[%clk 0:01:54.8]} 34. Rb6 {[%clk 0:00:00.8]} 34... Rd1
{[%clk 0:01:45.6]} 0-1